fUST/lending_fUST_20251011
["ID","MTS","AMOUNT","RATE_DAILY","PERIOD"]
[390725449,1760131838005,-151.0,0.0002847,2]
[390725457,1760131838015,-151.0,0.0002847,2]
[390725463,1760131838025,-260.68741844,0.0002847,2]
[390725474,1760131838038,-151.0,0.0002847,2]
[390725482,1760131838048,-938.07983324,0.00028472,2]
[390725492,1760131838061,-884.0,0.00028472,2]
[390725507,1760131838073,-25103.24022999,0.00028482,3]
[390725519,1760131838084,-526.02426037,0.00028482,3]
[390725529,1760131838095,-151.0,0.000285,17]
[390725539,1760131838106,-151.0,0.000285,11]
[390725550,1760131838118,-151.0,0.000285,12]
[390725561,1760131838129,-151.0,0.000285,17]
[390725571,1760131838140,-151.0,0.000285,11]
[390725582,1760131838151,-34815.25984655,0.000285,7]
[390725589,1760131838161,-151.0,0.00028515,30]
[390725594,1760131838175,-334.516582,0.00028515,30]
[390725603,1760131838187,-151.0,0.00028515,30]
[390725612,1760131838197,-334.516582,0.00028515,30]
[390725619,1760131838208,-334.516582,0.00028515,30]
[390725625,1760131838218,-334.516582,0.00028515,30]
[390725631,1760131838228,-151.0,0.00028515,30]
[390725638,1760131838239,-151.0,0.00028515,15]
[390725645,1760131838249,-151.0,0.00028515,15]
[390725653,1760131838260,-151.0,0.00028515,30]
[390725660,1760131838270,-151.0,0.00028515,15]
[390725665,1760131838282,-151.0,0.00028515,15]
[390725672,1760131838291,-151.0,0.00028515,30]
[390725678,1760131838301,-151.0,0.00028515,30]
[390725683,1760131838312,-151.0,0.00028515,30]
[390725689,1760131838322,-151.0,0.00028515,30]
[390725694,1760131838331,-151.0,0.00028515,30]
[390725700,1760131838342,-462.3788877,0.00028521,30]
[390725704,1760131838352,-588.0488839,0.00028521,30]
[390725709,1760131838362,-500.0,0.00028525,2]
[390725713,1760131838372,-151.0,0.00028525,2]
[390725717,1760131838385,-500.0,0.00028525,2]
[390725720,1760131838396,-562.7887732,0.00028525,2]
[390725725,1760131838406,-151.0,0.00028525,2]
[390725729,1760131838418,-152.02473839,0.00028525,2]
[390725733,1760131838429,-884.0,0.00028527,2]
[390725737,1760131838442,-462.99,0.00028541,3]
[390725739,1760131838453,-610.72,0.00028541,3]
[390725742,1760131838465,-168.0,0.00028544,2]
[390725756,1760131838616,-938.07983324,0.00028552,2]
[390725759,1760131838628,-633.5931204,0.0002856,60]
[390725760,1760131838638,-500.0,0.0002856,60]
[390725763,1760131838649,-500.0,0.0002856,60]
[390725764,1760131838660,-203.33746456,0.0002856,60]
[390725766,1760131838670,-500.0,0.0002856,2]
[390725768,1760131838681,-182.96283976,0.0002856,2]
[390725770,1760131838694,-151.0,0.00028561,30]
[390725772,1760131838707,-151.0,0.00028561,30]
[390725774,1760131838719,-151.0,0.00028561,30]
[390725776,1760131838730,-151.0,0.00028561,30]
[390725778,1760131838741,-151.0,0.00028561,30]
[390725780,1760131838753,-191.273196,0.00028561,30]
[390725782,1760131838768,-191.273196,0.00028561,30]
[390725783,1760131838780,-191.273196,0.00028561,30]
[390725784,1760131838789,-151.0,0.00028561,30]
[390725785,1760131838803,-191.273196,0.00028561,30]
[390725786,1760131838815,-152.13638,0.00028561,30]
[390725788,1760131838825,-151.0,0.00028561,30]
[390725789,1760131838836,-151.0,0.00028561,30]
[390725792,1760131838846,-151.0,0.00028561,30]
[390725795,1760131838857,-209.337906,0.00028561,30]
[390725798,1760131838868,-151.0,0.00028561,30]
[390725802,1760131838879,-151.0,0.00028561,30]
[390725807,1760131838889,-151.0,0.00028561,30]
[390725810,1760131838899,-151.0,0.00028561,30]
[390725813,1760131838909,-151.0,0.00028561,30]
[390725818,1760131838919,-151.0,0.00028561,30]
[390725821,1760131838930,-151.0,0.00028561,30]
[390725825,1760131838940,-151.0,0.00028561,30]
[390725829,1760131838951,-151.0,0.00028561,30]
[390725833,1760131838962,-151.0,0.00028561,30]
[390725837,1760131838972,-526.02426037,0.00028561,30]
[390725839,1760131838982,-151.0,0.00028561,30]
[390725843,1760131838992,-153.026028,0.00028561,30]
[390725846,1760131839004,-151.0,0.00028561,30]
[390725849,1760131839014,-151.0,0.00028561,30]
[390725852,1760131839024,-151.0,0.00028561,30]
[390725854,1760131839034,-151.0,0.00028561,30]
[390725856,1760131839043,-151.0,0.00028561,30]
[390725858,1760131839054,-151.0,0.00028561,30]
[390725861,1760131839064,-174.9948,0.00028561,30]
[390725863,1760131839074,-151.0,0.00028561,30]
[390725866,1760131839083,-151.0,0.00028561,30]
[390725869,1760131839094,-151.0,0.00028561,30]
[390725871,1760131839104,-151.638751,0.00028561,30]
[390725873,1760131839114,-151.0,0.00028561,30]
[390725875,1760131839124,-151.0,0.00028561,30]
[390725877,1760131839133,-151.0,0.00028561,30]
[390725879,1760131839142,-151.0,0.00028561,30]
[390725881,1760131839152,-151.0,0.00028561,30]
[390725882,1760131839162,-151.0,0.00028561,30]
[390725883,1760131839172,-151.0,0.00028561,30]
[390725884,1760131839182,-938.07983324,0.00028562,2]
[390725885,1760131839191,-151.0,0.00028562,30]
[390725886,1760131839201,-151.0,0.00028562,30]
[390725887,1760131839211,-301.99999998,0.00028562,30]
[390725888,1760131839220,-151.0,0.00028562,30]
[390725889,1760131839229,-151.0,0.00028562,30]
[390725890,1760131839238,-151.0,0.00028562,30]
[390725891,1760131839247,-151.0,0.00028562,30]
[390725892,1760131839257,-151.0,0.00028562,30]
[390725893,1760131839267,-151.0,0.00028562,30]
[390725894,1760131839278,-151.0,0.00028562,30]
[390725895,1760131839288,-151.0,0.00028562,2]
[390725896,1760131839298,-151.0,0.00028562,2]
[390725897,1760131839308,-169.0992,0.00028562,2]
[390725898,1760131839318,-151.0,0.00028562,30]
[390725899,1760131839327,-151.0,0.00028562,30]
[390725900,1760131839339,-152.127292,0.00028562,30]
[390725901,1760131839349,-152.357197,0.00028562,30]
[390725902,1760131839360,-151.0,0.00028562,30]
[390725903,1760131839370,-151.0,0.00028562,30]
[390725904,1760131839379,-151.0,0.00028562,30]
[390725905,1760131839388,-151.0,0.00028562,30]
[390725906,1760131839398,-151.0,0.00028562,30]
[390725907,1760131839408,-151.0,0.00028562,30]
[390725908,1760131839418,-151.0,0.00028562,30]
[390725909,1760131839427,-188.916536,0.00028562,30]
[390725910,1760131839436,-334.516582,0.00028562,30]
[390725911,1760131839445,-151.0,0.00028562,30]
[390725912,1760131839454,-334.516582,0.00028562,30]
[390725913,1760131839464,-334.516582,0.00028562,30]
[390725914,1760131839474,-188.916536,0.00028562,30]
[390725915,1760131839484,-334.516582,0.00028562,30]
[390725917,1760131839494,-188.916536,0.00028562,30]
[390725918,1760131839503,-188.916536,0.00028562,30]
[390725919,1760131839513,-151.0,0.00028562,30]
[390725921,1760131839523,-151.0,0.00028562,30]
[390725922,1760131839534,-151.0,0.00028562,30]
[390725923,1760131839544,-151.0,0.00028562,15]
[390725925,1760131839554,-151.0,0.00028562,15]
[390725927,1760131839564,-151.0,0.00028562,30]
[390725928,1760131839573,-151.0,0.00028562,15]
[390725930,1760131839584,-151.0,0.00028562,15]
[390725932,1760131839595,-156.968605,0.00028562,30]
[390725934,1760131839606,-151.0,0.00028562,30]
[390725935,1760131839617,-294.687968,0.00028562,30]
[390725936,1760131839650,-5628.47899944,0.00028572,2]
[390725937,1760131839660,-500.0,0.00028572,10]
[390725938,1760131839671,-938.07983324,0.00028572,2]
[390725939,1760131839681,-151.0,0.00028572,30]
[390725940,1760131839692,-151.0,0.00028572,30]
[390725941,1760131839702,-151.0,0.00028572,30]
[390725942,1760131839712,-151.0,0.00028572,30]
[390725943,1760131839722,-151.0,0.00028572,30]
[390725944,1760131839732,-151.0,0.00028572,30]
[390725945,1760131839741,-151.0,0.00028572,30]
[390725946,1760131839753,-151.0,0.00028572,30]
[390725947,1760131839763,-151.0,0.00028572,30]
[390725948,1760131839773,-151.0,0.00028572,30]
[390725949,1760131839783,-151.0,0.00028572,30]
[390725950,1760131839792,-151.0,0.00028572,30]
[390725951,1760131839803,-194.922924,0.00028572,30]
[390725952,1760131839815,-151.0,0.00028572,2]
[390725953,1760131839825,-151.0,0.00028572,2]
[390725954,1760131839836,-151.0,0.00028572,30]
[390725955,1760131839846,-241.571953,0.00028572,30]
[390725956,1760131839856,-151.0,0.00028572,30]
[390725957,1760131839866,-151.0,0.00028572,30]
[390725958,1760131839875,-188.916536,0.00028572,30]
[390725959,1760131839885,-334.516582,0.00028572,30]
[390725960,1760131839895,-151.0,0.00028572,30]
[390725961,1760131839904,-334.516582,0.00028572,30]
[390725962,1760131839913,-334.516582,0.00028572,30]
[390725963,1760131839923,-188.916536,0.00028572,30]
[390725964,1760131839932,-334.516582,0.00028572,30]
[390725965,1760131839941,-188.916536,0.00028572,30]
[390725966,1760131839951,-188.916536,0.00028572,30]
[390725967,1760131839960,-224.564696,0.00028572,30]
[390725968,1760131839970,-151.0,0.00028572,30]
[390725969,1760131839980,-151.0,0.00028572,30]
[390725970,1760131839990,-151.0,0.00028572,15]
[390725971,1760131839999,-151.0,0.00028572,15]
[390725972,1760131840010,-155.263993,0.00028572,30]
[390725974,1760131840020,-151.0,0.00028572,15]
[390725976,1760131840029,-151.0,0.00028572,15]
[390725978,1760131840039,-151.0,0.00028572,30]
[390725980,1760131840049,-500.0,0.00028573,5]
[390725981,1760131840060,-517.12563244,0.00028573,5]
[390725983,1760131840070,-500.0,0.00028573,5]
[390725985,1760131840080,-501.162106,0.00028573,5]
[390725987,1760131840092,-245.81687951,0.00028573,5]
[390725989,1760131840102,-500.0,0.00028573,5]
[390725994,1760131840112,-500.0,0.00028573,5]
[390725997,1760131840121,-500.7513023,0.0002858,2]
[390725999,1760131840131,-252.56642719,0.0002858,2]
[390726001,1760131840142,-500.0,0.0002858,2]
[390726003,1760131840152,-151.0,0.0002858,2]
[390726004,1760131840162,-151.0,0.00028581,2]
[390726005,1760131840172,-500.0,0.00028581,2]
[390726006,1760131840182,-98267.31798577,0.00028582,2]
[390726102,1760131841299,-180.00641475,0.000194,2]
[390726104,1760131841309,-151.0,0.0002299,7]
[390726106,1760131841319,-288.200192,0.0002299,7]
[390726108,1760131841328,-151.0,0.0002299,7]
[390726110,1760131841342,-151.0,0.00023,7]
[390726112,1760131841351,-159.829767,0.00023,7]
[390726114,1760131841361,-151.0,0.00023,7]
[390726116,1760131841371,-8662.10418181,0.00028482,2]
[390726118,1760131841380,-9880.27743179,0.00028582,2]
[390726120,1760131841393,-847.36548177,0.00028582,2]
[390726122,1760131841404,-174471.17964944,0.00028582,2]
[390726124,1760131841413,-884.0,0.00028582,2]
[390726126,1760131841423,-151.0,0.00028582,30]
[390726129,1760131841432,-159.480162,0.00028582,30]
[390726130,1760131841441,-151.0,0.00028582,30]
[390726132,1760131841450,-151.0,0.00028582,30]
[390726134,1760131841460,-151.0,0.00028582,30]
[390726136,1760131841470,-232.056482,0.00028582,30]
[390726138,1760131841480,-151.0,0.00028582,30]
[390726140,1760131841490,-243.902876,0.00028582,30]
[390726142,1760131841499,-191.273196,0.00028582,30]
[390726144,1760131841509,-191.273196,0.00028582,30]
[390726146,1760131841519,-191.273196,0.00028582,30]
[390726148,1760131841528,-151.0,0.00028582,30]
[390726150,1760131841538,-191.273196,0.00028582,30]
[390726152,1760131841547,-151.0,0.00028582,30]
[390726154,1760131841556,-151.0,0.00028582,30]
[390726156,1760131841566,-151.0,0.00028582,30]
[390726158,1760131841576,-151.0,0.00028582,30]
[390726160,1760131841587,-151.0,0.00028582,30]
[390726162,1760131841597,-151.0,0.00028582,30]
[390726164,1760131841606,-151.0,0.00028582,30]
[390726166,1760131841616,-151.0,0.00028582,30]
[390726168,1760131841625,-151.0,0.00028582,30]
[390726170,1760131841635,-151.0,0.00028582,30]
[390726171,1760131841644,-151.0,0.00028582,30]
[390726173,1760131841652,-151.0,0.00028582,30]
[390726174,1760131841662,-267.79785,0.00028582,30]
[390726176,1760131841672,-151.0,0.00028582,30]
[390726178,1760131841681,-151.0,0.00028582,30]
[390726180,1760131841690,-235.638905,0.00028582,30]
[390726181,1760131841699,-151.0,0.00028582,30]
[390726183,1760131841709,-151.0,0.00028582,30]
[390726185,1760131841719,-151.0,0.00028582,30]
[390726187,1760131841728,-151.0,0.00028582,30]
[390726188,1760131841738,-151.0,0.00028582,30]
[390726189,1760131841748,-151.0,0.00028582,30]
[390726190,1760131841762,-151.0,0.00028582,30]
[390726191,1760131841772,-151.0,0.00028582,30]
[390726192,1760131841783,-183.79964,0.00028582,30]
[390726193,1760131841793,-151.0,0.00028582,30]
[390726194,1760131841803,-151.0,0.00028582,30]
[390726195,1760131841815,-151.0,0.00028582,30]
[390726196,1760131841825,-151.0,0.00028582,30]
[390726197,1760131841838,-151.0,0.00028582,30]
[390726198,1760131841848,-151.0,0.00028582,30]
[390726199,1760131841858,-151.0,0.00028582,2]
[390726200,1760131841869,-151.0,0.00028582,2]
[390726201,1760131841879,-151.0,0.00028582,30]
[390726202,1760131841890,-1000.0,0.00028582,2]
[390726203,1760131841900,-1000.0,0.00028582,2]
[390726204,1760131841909,-1000.0,0.00028582,2]
[390726205,1760131841919,-1000.0,0.00028582,2]
[390726206,1760131841928,-1000.0,0.00028582,2]
[390726207,1760131841939,-1000.0,0.00028582,2]
[390726208,1760131841949,-1000.0,0.00028582,2]
[390726209,1760131841959,-1000.0,0.00028582,2]
[390726210,1760131841968,-1000.0,0.00028582,2]
[390726211,1760131841978,-1000.0,0.00028582,2]
[390726212,1760131841989,-1000.0,0.00028582,2]
[390726213,1760131842001,-1000.0,0.00028582,2]
[390726214,1760131842011,-1000.0,0.00028582,2]
[390726215,1760131842021,-188.916536,0.00028582,30]
[390726216,1760131842032,-1000.0,0.00028582,2]
[390726217,1760131842042,-1000.0,0.00028582,2]
[390726218,1760131842053,-1000.0,0.00028582,2]
[390726219,1760131842064,-1000.0,0.00028582,2]
[390726220,1760131842074,-1000.0,0.00028582,2]
[390726221,1760131842085,-1000.0,0.00028582,2]
[390726222,1760131842095,-1000.0,0.00028582,2]
[390726223,1760131842105,-1000.0,0.00028582,2]
[390726224,1760131842115,-1000.0,0.00028582,2]
[390726225,1760131842125,-1000.0,0.00028582,2]
[390726226,1760131842135,-1000.0,0.00028582,2]
[390726227,1760131842145,-1000.0,0.00028582,2]
[390726228,1760131842155,-1000.0,0.00028582,2]
[390726229,1760131842165,-1000.0,0.00028582,2]
[390726230,1760131842175,-649.758875,0.00028582,2]
[390726231,1760131842185,-334.516582,0.00028582,30]
[390726232,1760131842196,-334.516582,0.00028582,30]
[390726233,1760131842206,-334.516582,0.00028582,30]
[390726234,1760131842216,-188.916536,0.00028582,30]
[390726235,1760131842225,-334.516582,0.00028582,30]
[390726236,1760131842235,-188.916536,0.00028582,30]
[390726237,1760131842246,-188.916536,0.00028582,30]
[390726238,1760131842256,-151.0,0.00028582,30]
[390726239,1760131842266,-151.0,0.00028582,30]
[390726240,1760131842275,-151.0,0.00028582,15]
[390726241,1760131842285,-151.0,0.00028582,15]
[390726242,1760131842295,-151.0,0.00028582,15]
[390726243,1760131842305,-212.894724,0.00028582,15]
[390726244,1760131842315,-151.0,0.00028582,30]
[390726245,1760131842325,-500.0,0.00028588,7]
[390726246,1760131842337,-1323.04323636,0.00028591,2]
[390726247,1760131842347,-151.0,0.000286,20]
[390726248,1760131842357,-151.0,0.000286,12]
[390726249,1760131842368,-151.0,0.000286,17]
[390726250,1760131842378,-151.0,0.000286,20]
[390726251,1760131842389,-189.6925741,0.00028603,30]
[390726252,1760131842399,-162.8446322,0.00028603,30]
[390726253,1760131842409,-297.8284942,0.00028603,30]
[390726254,1760131842420,-153.0,0.00028603,30]
[390726255,1760131842431,-297.8284942,0.00028603,30]
[390726256,1760131842441,-162.8446322,0.00028603,30]
[390726257,1760131842452,-297.8284942,0.00028603,30]
[390726258,1760131842463,-162.8446322,0.00028603,30]
[390726259,1760131842474,-189.6925741,0.00028603,30]
[390726260,1760131842484,-153.0,0.00028603,30]
[390726261,1760131842495,-297.8284942,0.00028603,30]
[390726262,1760131842505,-162.8446322,0.00028603,30]
[390726263,1760131842516,-162.8446322,0.00028603,30]
[390726264,1760131842525,-605.1430533,0.00028603,30]
[390726265,1760131842536,-153.0,0.00028603,30]
[390726266,1760131842545,-189.6925741,0.00028603,30]
[390726267,1760131842555,-162.8446322,0.00028603,30]
[390726268,1760131842565,-162.8446322,0.00028603,30]
[390726269,1760131842574,-153.0,0.00028603,30]
[390726270,1760131842586,-189.6925741,0.00028603,30]
[390726272,1760131842595,-189.6925741,0.00028603,30]
[390726273,1760131842605,-189.6925741,0.00028603,30]
[390726275,1760131842616,-189.6925741,0.00028603,30]
[390726277,1760131842625,-189.6925741,0.00028603,30]
[390726279,1760131842635,-189.6925741,0.00028603,30]
[390726281,1760131842645,-189.6925741,0.00028603,30]
[390726282,1760131842655,-297.6412454,0.00028603,30]
[390726284,1760131842665,-168.0,0.00028608,2]
[390726285,1760131842675,-500.0,0.00028634,2]
[390726286,1760131842685,-151.0,0.00028634,2]
[390726287,1760131842695,-938.07983324,0.00028635,2]
[390726288,1760131842705,-242.46671906,0.00028636,2]
[390726289,1760131842714,-500.0,0.00028636,2]
[390726290,1760131842725,-884.0,0.00028636,2]
[390726291,1760131842734,-10000.0,0.00028645,2]
[390726292,1760131842744,-4500.0,0.0002865,5]
[390726293,1760131842755,-500.0,0.00028681,60]
[390726294,1760131842766,-500.0,0.00028681,60]
[390726295,1760131842775,-500.0,0.00028681,60]
[390726296,1760131842785,-500.0,0.00028681,60]
[390726297,1760131842796,-500.0,0.00028681,60]
[390726298,1760131842805,-500.0,0.00028681,60]
[390726299,1760131842816,-500.0,0.00028681,60]
[390726300,1760131842829,-400.47092201,0.00028681,60]
[390726301,1760131842840,-2200.0,0.00028682,2]
[390726304,1760131842849,-296.40420351,0.00028689,2]
[390726307,1760131842859,-262.16537658,0.00028689,2]
[390726310,1760131842868,-658.57620859,0.00028691,2]
[390726313,1760131842878,-1000.0,0.00028691,7]
[390726317,1760131842887,-893.73608669,0.00028691,2]
[390726321,1760131842896,-939.14680256,0.00028692,2]
[390726324,1760131842906,-807.03349744,0.00028692,2]
[390726329,1760131842916,-3228.13398975,0.00028692,2]
[390726331,1760131842925,-300.0,0.000287,2]
[390726336,1760131842935,-300.0,0.000287,2]
[390726342,1760131842945,-151.0,0.000287,10]
[390726347,1760131842955,-168.0,0.0002873,2]
[390726355,1760131842965,-171.95269346,0.00028737,7]
[390726362,1760131842978,-166.0,0.00028737,7]
[390726367,1760131842988,-500.0,0.00028745,2]
[390726370,1760131842998,-980.0,0.00028745,2]
[390726373,1760131843008,-630.0,0.00028745,2]
[390726376,1760131843018,-2159.0,0.00028745,2]
[390726379,1760131843027,-414.167,0.00028745,2]
[390726382,1760131843037,-154.002527,0.00028748,14]
[390726389,1760131843046,-168.0,0.00028759,2]
[390726396,1760131843056,-938.07983324,0.00028761,2]
[390726405,1760131843067,-151.0,0.00028771,30]
[390726412,1760131843076,-151.0,0.00028771,30]
[390726419,1760131843089,-151.0,0.00028771,30]
[390726425,1760131843100,-151.0,0.00028771,30]
[390726434,1760131843110,-151.0,0.00028771,30]
[390726440,1760131843120,-151.0,0.00028771,2]
[390726445,1760131843130,-151.0,0.00028771,2]
[390726457,1760131843140,-239.634239,0.00028771,30]
[390726467,1760131843151,-188.916536,0.00028771,30]
[390726478,1760131843161,-334.516582,0.00028771,30]
[390726489,1760131843171,-334.516582,0.00028771,30]
[390726504,1760131843189,-334.516582,0.00028771,30]
[390726516,1760131843200,-188.916536,0.00028771,30]
[390726527,1760131843210,-334.51658056,0.00028771,30]
[390726538,1760131843221,-188.916536,0.00028771,30]
[390726548,1760131843230,-188.916536,0.00028771,30]
[390726557,1760131843240,-151.0,0.00028771,30]
[390726565,1760131843250,-196.105744,0.00028771,30]
[390726573,1760131843259,-151.0,0.00028771,15]
[390726581,1760131843269,-151.0,0.00028771,15]
[390726588,1760131843279,-151.0,0.00028771,15]
[390726599,1760131843296,-151.0,0.00028771,30]
[390726607,1760131843307,-4690.3991662,0.00028771,2]
[390726614,1760131843317,-500.0,0.00028773,5]
[390726620,1760131843327,-500.0,0.00028773,5]
[390726626,1760131843336,-500.0,0.00028773,5]
[390726630,1760131843346,-203.79112452,0.00028773,5]
[390726636,1760131843356,-500.12657935,0.00028773,5]
[390726642,1760131843365,-500.0,0.00028773,5]
[390726646,1760131843375,-500.21925851,0.00028773,5]
[390726652,1760131843385,-150.0,0.00028773,5]
[390726657,1760131843399,-200.0,0.00028781,2]
[390726662,1760131843409,-151.0,0.00028781,30]
[390726663,1760131843418,-151.0,0.00028781,30]
[390726671,1760131843428,-151.0,0.00028781,30]
[390726676,1760131843439,-151.0,0.00028781,30]
[390726681,1760131843448,-151.0,0.00028781,30]
[390726684,1760131843457,-151.0,0.00028781,30]
[390726689,1760131843467,-151.0,0.00028781,30]
[390726693,1760131843477,-151.0,0.00028781,30]
[390726698,1760131843486,-191.273196,0.00028781,30]
[390726703,1760131843496,-191.273196,0.00028781,30]
[390726708,1760131843506,-191.273196,0.00028781,30]
[390726712,1760131843516,-191.273196,0.00028781,30]
[390726716,1760131843526,-191.273196,0.00028781,30]
[390726720,1760131843535,-191.273196,0.00028781,30]
[390726760,1760131843668,-191.273196,0.00028781,30]
[390726763,1760131843678,-151.0,0.00028781,30]
[390726766,1760131843688,-191.273196,0.00028781,30]
[390726769,1760131843697,-151.0,0.00028781,30]
[390726772,1760131843708,-191.273196,0.00028781,30]
[390726775,1760131843717,-151.0,0.00028781,30]
[390726778,1760131843726,-191.273196,0.00028781,30]
[390726781,1760131843735,-191.273196,0.00028781,30]
[390726784,1760131843745,-191.273186,0.00028781,30]
[390726787,1760131843759,-151.0,0.00028781,30]
[390726790,1760131843771,-151.0,0.00028781,30]
[390726793,1760131843780,-151.0,0.00028781,30]
[390726796,1760131843790,-151.0,0.00028781,30]
[390726799,1760131843799,-151.0,0.00028781,30]
[390726801,1760131843812,-151.0,0.00028781,30]
[390726804,1760131843821,-151.0,0.00028781,30]
[390726808,1760131843831,-151.0,0.00028781,30]
[390726810,1760131843843,-151.0,0.00028781,30]
[390726814,1760131843854,-151.0,0.00028781,30]
[390726818,1760131843863,-151.0,0.00028781,30]
[390726820,1760131843873,-151.0,0.00028781,30]
[390726822,1760131843883,-151.0,0.00028781,30]
[390726823,1760131843894,-151.0,0.00028781,30]
[390726825,1760131843903,-208.468505,0.00028781,30]
[390726827,1760131843913,-151.0,0.00028781,30]
[390726829,1760131843923,-151.0,0.00028781,30]
[390726831,1760131843933,-151.0,0.00028781,30]
[390726833,1760131843942,-151.0,0.00028781,30]
[390726834,1760131843951,-151.0,0.00028781,30]
[390726835,1760131843961,-151.0,0.00028781,30]
[390726837,1760131843970,-151.0,0.00028781,30]
[390726839,1760131843979,-151.0,0.00028781,30]
[390726841,1760131843989,-294.0535,0.00028781,30]
[390726843,1760131843998,-151.0,0.00028781,30]
[390726845,1760131844007,-257.227709,0.00028781,30]
[390726847,1760131844016,-151.0,0.00028781,30]
[390726849,1760131844026,-151.0,0.00028781,30]
[390726851,1760131844035,-160.70339,0.00028781,30]
[390726853,1760131844045,-151.0,0.00028781,30]
[390726855,1760131844054,-151.0,0.00028781,30]
[390726857,1760131844064,-151.0,0.00028781,30]
[390726858,1760131844073,-151.0,0.00028781,30]
[390726860,1760131844083,-151.0,0.00028781,30]
[390726862,1760131844094,-151.0,0.00028781,30]
[390726864,1760131844103,-151.0,0.00028781,30]
[390726866,1760131844113,-183.095485,0.00028781,30]
[390726868,1760131844122,-151.0,0.00028781,30]
[390726870,1760131844131,-164.622305,0.00028781,30]
[390726872,1760131844140,-151.0,0.00028781,30]
[390726874,1760131844150,-151.0,0.00028781,30]
[390726876,1760131844159,-151.0,0.00028781,30]
[390726878,1760131844168,-151.0,0.00028781,30]
[390726880,1760131844178,-151.0,0.00028781,30]
[390726882,1760131844188,-151.0,0.00028781,30]
[390726884,1760131844197,-151.0,0.00028781,30]
[390726885,1760131844207,-151.0,0.00028781,30]
[390726887,1760131844218,-151.0,0.00028781,30]
[390726888,1760131844227,-151.0,0.00028781,30]
[390726890,1760131844237,-151.0,0.00028781,30]
[390726892,1760131844246,-151.0,0.00028781,30]
[390726893,1760131844255,-7113.26,0.00028781,2]
[390726895,1760131844265,-7113.26,0.00028781,2]
[390726896,1760131844274,-7113.26,0.00028781,2]
[390726898,1760131844283,-7113.26,0.00028781,2]
[390726899,1760131844293,-7113.26,0.00028781,2]
[390726901,1760131844303,-7113.26,0.00028781,2]
[390726902,1760131844312,-7113.26,0.00028781,2]
[390726904,1760131844321,-7113.26,0.00028781,2]
[390726906,1760131844331,-7113.26,0.00028781,2]
[390726907,1760131844342,-7113.26,0.00028781,2]
[390726909,1760131844352,-7113.26,0.00028781,2]
[390726911,1760131844362,-7113.26,0.00028781,2]
[390726912,1760131844371,-7113.26,0.00028781,2]
[390726914,1760131844380,-7113.26,0.00028781,2]
[390726916,1760131844390,-7113.26,0.00028781,2]
[390726917,1760131844400,-7113.26,0.00028781,2]
[390726919,1760131844409,-7113.26,0.00028781,2]
[390726920,1760131844419,-7113.26,0.00028781,2]
[390726922,1760131844428,-7113.26,0.00028781,2]
[390726924,1760131844437,-7113.26,0.00028781,2]
[390726926,1760131844447,-7113.26,0.00028781,2]
[390726927,1760131844457,-7113.26,0.00028781,2]
[390726929,1760131844466,-7113.26,0.00028781,2]
[390726931,1760131844476,-7113.31831705,0.00028781,2]